[Event "Early-Titled-Tuesday-Blitz-November-28-2023"]
[Site "Chess.com"]
[Date "2023.11.28"]
[Round "3"]
[White "Matols"]
[Black "katharinareinecke"]
[Result "1-0"]
[WhiteElo "2348"]
[BlackElo "1975"]
[TimeControl "180+1"]
[EndTime "8:29:25 PST"]
[Termination "Matols won by resignation"]

1. d4 {[%clk 0:03:00.9]} 1... d5 {[%clk 0:02:57.1]} 2. c4 {[%clk 0:03:01.4]}
2... c6 {[%clk 0:02:54.6]} 3. Nf3 {[%clk 0:03:01.4]} 3... Nf6 {[%clk 0:02:52.4]}
4. Qb3 {[%clk 0:03:01.8]} 4... e6 {[%clk 0:02:51]} 5. g3 {[%clk 0:03:01.4]} 5...
Be7 {[%clk 0:02:44.3]} 6. Bg2 {[%clk 0:03:01.4]} 6... O-O {[%clk 0:02:43.4]} 7.
O-O {[%clk 0:03:01.9]} 7... Nbd7 {[%clk 0:02:34.9]} 8. Rd1 {[%clk 0:02:59]} 8...
a6 {[%clk 0:02:28.4]} 9. Nbd2 {[%clk 0:02:48.3]} 9... b5 {[%clk 0:02:26.1]} 10.
c5 {[%clk 0:02:46]} 10... a5 {[%clk 0:02:23.4]} 11. Qc2 {[%clk 0:02:43.9]} 11...
Ba6 {[%clk 0:02:19.7]} 12. e4 {[%clk 0:02:40.9]} 12... b4 {[%clk 0:02:11.2]} 13.
h4 {[%clk 0:02:29.4]} 13... dxe4 {[%clk 0:01:57.2]} 14. Nxe4 {[%clk 0:02:30.3]}
14... Nd5 {[%clk 0:01:56.6]} 15. Neg5 {[%clk 0:02:24.7]} 15... g6 {[%clk
0:01:51.6]} 16. Ne5 {[%clk 0:02:14]} 16... Nxe5 {[%clk 0:01:43.8]} 17. dxe5
{[%clk 0:02:14.9]} 17... Qc7 {[%clk 0:01:26.5]} 18. Re1 {[%clk 0:01:59.1]} 18...
Rad8 {[%clk 0:01:25]} 19. Bd2 {[%clk 0:01:46.1]} 19... Rd7 {[%clk 0:01:23.6]}
20. Nf3 {[%clk 0:01:23]} 20... Rfd8 {[%clk 0:01:22.8]} 21. Bg5 {[%clk 0:01:18]}
21... Bxg5 {[%clk 0:01:19]} 22. hxg5 {[%clk 0:01:18.9]} 22... Ne7 {[%clk
0:01:11.8]} 23. Rad1 {[%clk 0:01:13.7]} 23... Bd3 {[%clk 0:01:02.3]} 24. Qc1
{[%clk 0:01:11.7]} 24... Bf5 {[%clk 0:00:58.4]} 25. Rd6 {[%clk 0:01:05.1]} 25...
Qa7 {[%clk 0:00:54.6]} 26. Red1 {[%clk 0:01:02.2]} 26... Qc7 {[%clk 0:00:45.6]}
27. Qf4 {[%clk 0:00:54.3]} 27... Nd5 {[%clk 0:00:42.9]} 28. Qh4 {[%clk
0:00:51.9]} 28... a4 {[%clk 0:00:30.2]} 29. Kh2 {[%clk 0:00:49]} 29... a3 {[%clk
0:00:22.1]} 30. b3 {[%clk 0:00:47.5]} 30... Rxd6 {[%clk 0:00:20.3]} 31. exd6
{[%clk 0:00:41.4]} 31... Qd7 {[%clk 0:00:17.6]} 32. Ne5 {[%clk 0:00:39.9]} 32...
Qe8 {[%clk 0:00:16.4]} 33. Rh1 {[%clk 0:00:38.3]} 33... Qf8 {[%clk 0:00:16.4]}
34. g4 {[%clk 0:00:30.4]} 34... Bc2 {[%clk 0:00:15.3]} 35. Rc1 {[%clk
0:00:29.9]} 35... Nf4 {[%clk 0:00:10.1]} 36. Rxc2 {[%clk 0:00:27.4]} 36... Nxg2
{[%clk 0:00:10.1]} 37. Kxg2 {[%clk 0:00:27.8]} 37... Qg7 {[%clk 0:00:10.5]} 38.
f4 {[%clk 0:00:27.4]} 38... Ra8 {[%clk 0:00:07.2]} 39. Qh6 {[%clk 0:00:27]}
39... Qh8 {[%clk 0:00:06.5]} 40. d7 {[%clk 0:00:23.2]} 40... f6 {[%clk
0:00:06.2]} 41. gxf6 {[%clk 0:00:21.9]} 41... Qxf6 {[%clk 0:00:05.6]} 42. Qg5
{[%clk 0:00:21.1]} 42... Qxg5 {[%clk 0:00:04.1]} 43. fxg5 {[%clk 0:00:22]} 43...
Kg7 {[%clk 0:00:04.2]} 44. Nxc6 {[%clk 0:00:21.5]} 44... h6 {[%clk 0:00:02.6]}
45. d8=Q {[%clk 0:00:21.4]} 45... Rxd8 {[%clk 0:00:03.3]} 46. Nxd8 {[%clk
0:00:22.2]} 46... hxg5 {[%clk 0:00:03.7]} 47. Nxe6+ {[%clk 0:00:22.8]} 47... Kf6
{[%clk 0:00:03.8]} 48. c6 {[%clk 0:00:22.9]} 48... Kxe6 {[%clk 0:00:03.8]} 49.
c7 {[%clk 0:00:23.5]} 1-0

[Event "Early-Titled-Tuesday-Blitz-November-28-2023"]
[Site "Chess.com"]
[Date "2023.11.28"]
[Round "3"]
[White "grunbergmihai"]
[Black "SlavenPastar"]
[Result "0-1"]
[WhiteElo "2497"]
[BlackElo "2655"]
[TimeControl "180+1"]
[EndTime "8:29:30 PST"]
[Termination "SlavenPastar won by resignation"]

1. Nf3 {[%clk 0:03:00.9]} 1... b6 {[%clk 0:02:59.9]} 2. d4 {[%clk 0:02:56.3]}
2... Bb7 {[%clk 0:03:00.8]} 3. c4 {[%clk 0:02:56.1]} 3... e6 {[%clk 0:03:01.4]}
4. a3 {[%clk 0:02:56.4]} 4... Nf6 {[%clk 0:03:01.5]} 5. Nc3 {[%clk 0:02:56.8]}
5... g6 {[%clk 0:03:01.1]} 6. Qc2 {[%clk 0:02:55]} 6... d5 {[%clk 0:02:58.9]} 7.
Bg5 {[%clk 0:02:52.8]} 7... Bg7 {[%clk 0:02:55.4]} 8. e3 {[%clk 0:02:51.6]} 8...
O-O {[%clk 0:02:53.9]} 9. Rd1 {[%clk 0:02:50.6]} 9... h6 {[%clk 0:02:49.7]} 10.
Bh4 {[%clk 0:02:50.3]} 10... Nbd7 {[%clk 0:02:37.2]} 11. Ne5 {[%clk 0:02:44.7]}
11... g5 {[%clk 0:02:30.1]} 12. Bg3 {[%clk 0:02:44]} 12... dxc4 {[%clk
0:02:14.6]} 13. Nxc4 {[%clk 0:02:37.1]} 13... Nd5 {[%clk 0:02:10]} 14. Nxd5
{[%clk 0:02:34.6]} 14... exd5 {[%clk 0:02:01.8]} 15. Ne5 {[%clk 0:02:27.2]}
15... Nxe5 {[%clk 0:01:59.5]} 16. Bxe5 {[%clk 0:02:27.2]} 16... Bxe5 {[%clk
0:01:40.2]} 17. dxe5 {[%clk 0:02:28.1]} 17... Qe7 {[%clk 0:01:39.7]} 18. Qf5
{[%clk 0:02:20.8]} 18... Bc8 {[%clk 0:01:31.9]} 19. Qf6 {[%clk 0:02:19.1]} 19...
Qxf6 {[%clk 0:01:31.1]} 20. exf6 {[%clk 0:02:20]} 20... Rd8 {[%clk 0:01:21.5]}
21. h4 {[%clk 0:02:13.8]} 21... g4 {[%clk 0:01:16.6]} 22. Bb5 {[%clk 0:02:07.5]}
22... Bb7 {[%clk 0:01:03.8]} 23. Rd4 {[%clk 0:02:00.7]} 23... h5 {[%clk
0:01:02.4]} 24. f3 {[%clk 0:02:00.5]} 24... c6 {[%clk 0:00:32]} 25. Be2 {[%clk
0:01:54.9]} 25... Rd6 {[%clk 0:00:20.9]} 26. Rf4 {[%clk 0:01:44.7]} 26... Re8
{[%clk 0:00:20.5]} 27. Kd2 {[%clk 0:01:43.9]} 27... Rde6 {[%clk 0:00:17]} 28.
fxg4 {[%clk 0:01:38]} 28... Rxe3 {[%clk 0:00:16.9]} 29. Bd3 {[%clk 0:01:34.9]}
29... c5 {[%clk 0:00:15.7]} 30. gxh5 {[%clk 0:01:32.4]} 30... Rg3 {[%clk
0:00:14.2]} 31. Rh2 {[%clk 0:01:23.3]} 31... d4 {[%clk 0:00:12.3]} 32. h6 {[%clk
0:01:12.5]} 32... Ree3 {[%clk 0:00:09.2]} 33. Be2 {[%clk 0:01:07.5]} 33... Kh7
{[%clk 0:00:06.6]} 34. Rh3 {[%clk 0:00:56.6]} 34... Kxh6 {[%clk 0:00:06.1]} 35.
Rxg3 {[%clk 0:00:56]} 35... Rxg3 {[%clk 0:00:07]} 36. Bf3 {[%clk 0:00:52.9]}
36... Bxf3 {[%clk 0:00:06.4]} 37. gxf3 {[%clk 0:00:51.8]} 37... Rg2+ {[%clk
0:00:04.7]} 38. Kc1 {[%clk 0:00:51.9]} 38... Kg6 {[%clk 0:00:04.3]} 39. Rg4+
{[%clk 0:00:32.4]} 39... Rxg4 {[%clk 0:00:03.9]} 40. fxg4 {[%clk 0:00:33.3]}
40... Kxf6 {[%clk 0:00:04.5]} 41. a4 {[%clk 0:00:27.9]} 41... Ke5 {[%clk
0:00:03.2]} 42. Kd2 {[%clk 0:00:23.4]} 42... Kf4 {[%clk 0:00:03.2]} 43. h5
{[%clk 0:00:23.6]} 43... Kg5 {[%clk 0:00:03.7]} 44. Kd3 {[%clk 0:00:20.3]} 44...
f5 {[%clk 0:00:04]} 45. gxf5 {[%clk 0:00:20.3]} 45... Kxf5 {[%clk 0:00:04.6]}
46. Kc4 {[%clk 0:00:17]} 46... Kg5 {[%clk 0:00:04.7]} 47. a5 {[%clk 0:00:17.5]}
47... bxa5 {[%clk 0:00:04.5]} 48. b3 {[%clk 0:00:16.3]} 48... Kxh5 {[%clk
0:00:04.6]} 49. Kxc5 {[%clk 0:00:17.2]} 49... d3 {[%clk 0:00:04.7]} 0-1

[Event "Early-Titled-Tuesday-Blitz-November-28-2023"]
[Site "Chess.com"]
[Date "2023.11.28"]
[Round "3"]
[White "YouJustFoundYourGodfather"]
[Black "Daniel_Salinas"]
[Result "1-0"]
[WhiteElo "2599"]
[BlackElo "2417"]
[TimeControl "180+1"]
[EndTime "8:29:30 PST"]
[Termination "YouJustFoundYourGodfather won by resignation"]

1. e4 {[%clk 0:02:56]} 1... c5 {[%clk 0:02:54.8]} 2. Nc3 {[%clk 0:02:47.8]} 2...
e6 {[%clk 0:02:54.7]} 3. Nf3 {[%clk 0:02:38.4]} 3... Nc6 {[%clk 0:02:52.6]} 4.
Bb5 {[%clk 0:02:38.2]} 4... Nd4 {[%clk 0:02:49.7]} 5. Bd3 {[%clk 0:02:33.4]}
5... d6 {[%clk 0:02:46.1]} 6. Nxd4 {[%clk 0:02:30.1]} 6... cxd4 {[%clk
0:02:45.9]} 7. Ne2 {[%clk 0:02:31]} 7... e5 {[%clk 0:02:44.7]} 8. c3 {[%clk
0:02:31.4]} 8... dxc3 {[%clk 0:02:44.5]} 9. bxc3 {[%clk 0:02:30.2]} 9... Nf6
{[%clk 0:02:45]} 10. Rb1 {[%clk 0:02:29.6]} 10... Be7 {[%clk 0:02:42.1]} 11. O-O
{[%clk 0:02:29.6]} 11... O-O {[%clk 0:02:32.8]} 12. Bc2 {[%clk 0:02:28.4]} 12...
b6 {[%clk 0:02:23.9]} 13. Ng3 {[%clk 0:02:27.3]} 13... Be6 {[%clk 0:02:13.8]}
14. a4 {[%clk 0:02:26.8]} 14... Qc7 {[%clk 0:02:12.1]} 15. Bb3 {[%clk
0:02:13.9]} 15... Bxb3 {[%clk 0:02:07.2]} 16. Qxb3 {[%clk 0:02:14.8]} 16... Qc6
{[%clk 0:02:07.2]} 17. d3 {[%clk 0:02:14.1]} 17... d5 {[%clk 0:02:05]} 18. Nf5
{[%clk 0:02:13.7]} 18... Rfe8 {[%clk 0:02:01.6]} 19. f3 {[%clk 0:02:05]} 19...
Bf8 {[%clk 0:01:58.2]} 20. Bg5 {[%clk 0:02:02.2]} 20... g6 {[%clk 0:01:42.3]}
21. Ne3 {[%clk 0:01:56.1]} 21... Bc5 {[%clk 0:01:41.2]} 22. Kh1 {[%clk
0:01:50.6]} 22... Bxe3 {[%clk 0:01:35.5]} 23. Bxe3 {[%clk 0:01:51.5]} 23... Rad8
{[%clk 0:01:33.5]} 24. Bg5 {[%clk 0:01:50.4]} 24... Rd7 {[%clk 0:01:29.3]} 25.
Bxf6 {[%clk 0:01:45]} 25... Qxf6 {[%clk 0:01:30.2]} 26. exd5 {[%clk 0:01:45.3]}
26... Rc8 {[%clk 0:01:23.9]} 27. c4 {[%clk 0:01:45.2]} 27... Qd6 {[%clk
0:01:08]} 28. Rfe1 {[%clk 0:01:42.7]} 28... f6 {[%clk 0:01:03.2]} 29. Re4 {[%clk
0:01:34.8]} 29... Rc5 {[%clk 0:00:57.7]} 30. Rbe1 {[%clk 0:01:26.9]} 30... a6
{[%clk 0:00:55.2]} 31. f4 {[%clk 0:01:23.6]} 31... exf4 {[%clk 0:00:53.9]} 32.
Re6 {[%clk 0:01:23]} 32... Qc7 {[%clk 0:00:50.9]} 33. Rxb6 {[%clk 0:01:08.4]}
33... Re7 {[%clk 0:00:33.6]} 34. Rb8+ {[%clk 0:00:40.4]} 34... Kg7 {[%clk
0:00:29.1]} 35. Rxe7+ {[%clk 0:00:39]} 35... Qxe7 {[%clk 0:00:30]} 36. Rb7
{[%clk 0:00:39.1]} 36... Rc7 {[%clk 0:00:30.6]} 37. Rxc7 {[%clk 0:00:39.3]}
37... Qxc7 {[%clk 0:00:31.5]} 38. d4 {[%clk 0:00:32.1]} 38... Qe7 {[%clk
0:00:30.1]} 39. Qd1 {[%clk 0:00:27.5]} 39... Qb4 {[%clk 0:00:28.3]} 40. Qc1
{[%clk 0:00:23.6]} 40... Qb3 {[%clk 0:00:26.2]} 41. c5 {[%clk 0:00:15.1]} 41...
Qxd5 {[%clk 0:00:22.3]} 42. c6 {[%clk 0:00:15]} 42... Qd8 {[%clk 0:00:07.1]} 43.
c7 {[%clk 0:00:14.7]} 43... Qc8 {[%clk 0:00:07.8]} 44. d5 {[%clk 0:00:13]} 44...
Kf7 {[%clk 0:00:06.5]} 45. Qc6 {[%clk 0:00:12.2]} 45... Ke7 {[%clk 0:00:06.4]}
46. Qe6+ {[%clk 0:00:08.5]} 1-0

[Event "Early-Titled-Tuesday-Blitz-November-28-2023"]
[Site "Chess.com"]
[Date "2023.11.28"]
[Round "3"]
[White "Savagelittlemole"]
[Black "LaPiToB"]
[Result "1-0"]
[WhiteElo "2485"]
[BlackElo "2263"]
[TimeControl "180+1"]
[EndTime "8:29:36 PST"]
[Termination "Savagelittlemole won by resignation"]

1. e4 {[%clk 0:03:00.9]} 1... c6 {[%clk 0:02:59.4]} 2. d4 {[%clk 0:03:00.5]}
2... d5 {[%clk 0:03:00]} 3. exd5 {[%clk 0:02:59.9]} 3... cxd5 {[%clk 0:02:59.5]}
4. Nf3 {[%clk 0:03:00.6]} 4... Nc6 {[%clk 0:02:57.9]} 5. Bb5 {[%clk 0:03:00.8]}
5... Bg4 {[%clk 0:02:56.7]} 6. Nbd2 {[%clk 0:02:54.5]} 6... e6 {[%clk
0:02:54.7]} 7. O-O {[%clk 0:02:53.1]} 7... Bd6 {[%clk 0:02:52.2]} 8. h3 {[%clk
0:02:47.8]} 8... Bh5 {[%clk 0:02:51.3]} 9. c3 {[%clk 0:02:47.4]} 9... Ne7 {[%clk
0:02:45.8]} 10. Re1 {[%clk 0:02:43.2]} 10... O-O {[%clk 0:02:44.4]} 11. Nf1
{[%clk 0:02:43.5]} 11... a6 {[%clk 0:02:42.5]} 12. Be2 {[%clk 0:02:43.3]} 12...
b5 {[%clk 0:02:36.3]} 13. a3 {[%clk 0:02:40.3]} 13... Rc8 {[%clk 0:02:34.3]} 14.
N3h2 {[%clk 0:02:28.2]} 14... Bg6 {[%clk 0:02:32]} 15. Bd3 {[%clk 0:02:19.5]}
15... Bxd3 {[%clk 0:02:21]} 16. Qxd3 {[%clk 0:02:20.4]} 16... Na5 {[%clk
0:02:19]} 17. Bg5 {[%clk 0:02:15.9]} 17... Qc7 {[%clk 0:02:11]} 18. Rad1 {[%clk
0:01:59.5]} 18... h6 {[%clk 0:02:00.2]} 19. Bxe7 {[%clk 0:01:55.7]} 19... Qxe7
{[%clk 0:01:58.1]} 20. Ng4 {[%clk 0:01:49.9]} 20... Nc4 {[%clk 0:01:54.3]} 21.
Re2 {[%clk 0:01:48.5]} 21... Bb8 {[%clk 0:01:43.2]} 22. Nfe3 {[%clk 0:01:45.1]}
22... Qd6 {[%clk 0:01:31.1]} 23. Nxc4 {[%clk 0:01:28.9]} 23... bxc4 {[%clk
0:01:28]} 24. Qe3 {[%clk 0:01:28.3]} 24... h5 {[%clk 0:01:17.8]} 25. Ne5 {[%clk
0:01:27.6]} 25... f6 {[%clk 0:01:12.4]} 26. Nf3 {[%clk 0:01:27.6]} 26... Rfe8
{[%clk 0:01:06.1]} 27. g3 {[%clk 0:01:26.6]} 27... Re7 {[%clk 0:00:59.9]} 28.
Nh4 {[%clk 0:01:25.8]} 28... Kf7 {[%clk 0:00:50.6]} 29. Qf3 {[%clk 0:01:19.2]}
29... g6 {[%clk 0:00:46.4]} 30. Rde1 {[%clk 0:01:19]} 30... Rce8 {[%clk
0:00:45.3]} 31. Ng2 {[%clk 0:01:15.6]} 31... e5 {[%clk 0:00:41.5]} 32. dxe5
{[%clk 0:01:14.5]} 32... Rxe5 {[%clk 0:00:41.6]} 33. Rxe5 {[%clk 0:01:13]} 33...
Rxe5 {[%clk 0:00:42.2]} 34. Rxe5 {[%clk 0:01:02.5]} 34... Qxe5 {[%clk
0:00:42.3]} 35. Ne3 {[%clk 0:01:02.4]} 35... Ke6 {[%clk 0:00:35.6]} 36. Kf1
{[%clk 0:00:51.7]} 36... Ba7 {[%clk 0:00:35.6]} 37. Ng2 {[%clk 0:00:47.4]} 37...
g5 {[%clk 0:00:33.7]} 38. Qxh5 {[%clk 0:00:44.4]} 38... Kd6 {[%clk 0:00:31.3]}
39. Qf3 {[%clk 0:00:26.4]} 39... a5 {[%clk 0:00:29.7]} 40. a4 {[%clk 0:00:23.7]}
40... Kc6 {[%clk 0:00:28.7]} 41. h4 {[%clk 0:00:15.8]} 41... gxh4 {[%clk
0:00:27.6]} 42. gxh4 {[%clk 0:00:16.7]} 42... f5 {[%clk 0:00:18.1]} 43. Nf4
{[%clk 0:00:15.6]} 43... Kd6 {[%clk 0:00:13.5]} 44. h5 {[%clk 0:00:15.6]} 44...
d4 {[%clk 0:00:12.9]} 45. cxd4 {[%clk 0:00:14.2]} 45... Bxd4 {[%clk 0:00:13.8]}
46. h6 {[%clk 0:00:11.9]} 46... Bxb2 {[%clk 0:00:13.3]} 47. h7 {[%clk
0:00:11.3]} 47... c3 {[%clk 0:00:11.6]} 48. Qd3+ {[%clk 0:00:10.9]} 48... Kc5
{[%clk 0:00:11.1]} 49. Qb5+ {[%clk 0:00:08.8]} 49... Kd6 {[%clk 0:00:10.6]} 50.
Qxe5+ {[%clk 0:00:06.9]} 50... Kxe5 {[%clk 0:00:10.8]} 51. Nd3+ {[%clk
0:00:06.2]} 51... Kd4 {[%clk 0:00:10.8]} 52. Nxb2 {[%clk 0:00:05.7]} 52... cxb2
{[%clk 0:00:10.9]} 53. h8=Q+ {[%clk 0:00:06.2]} 1-0

[Event "Early-Titled-Tuesday-Blitz-November-28-2023"]
[Site "Chess.com"]
[Date "2023.11.28"]
[Round "3"]
[White "Azerichess"]
[Black "luckyswitchback"]
[Result "1/2-1/2"]
[WhiteElo "3030"]
[BlackElo "2787"]
[TimeControl "180+1"]
[EndTime "8:29:38 PST"]
[Termination "Game drawn by repetition"]

1. Nf3 {[%clk 0:02:53.1]} 1... d5 {[%clk 0:03:00]} 2. e3 {[%clk 0:02:53.2]} 2...
Nf6 {[%clk 0:02:58]} 3. c4 {[%clk 0:02:53.3]} 3... e6 {[%clk 0:02:58.4]} 4. b3
{[%clk 0:02:53.2]} 4... b6 {[%clk 0:02:56.5]} 5. Bb2 {[%clk 0:02:49.4]} 5... Bb7
{[%clk 0:02:56.7]} 6. Nc3 {[%clk 0:02:48.7]} 6... Nbd7 {[%clk 0:02:55.8]} 7.
cxd5 {[%clk 0:02:48.4]} 7... exd5 {[%clk 0:02:56.7]} 8. g3 {[%clk 0:02:48.8]}
8... d4 {[%clk 0:02:47.4]} 9. Nb5 {[%clk 0:02:43.9]} 9... dxe3 {[%clk
0:02:34.1]} 10. fxe3 {[%clk 0:02:44.8]} 10... a6 {[%clk 0:02:34.3]} 11. Nbd4
{[%clk 0:02:36.9]} 11... c5 {[%clk 0:02:34.2]} 12. Nc2 {[%clk 0:02:33.1]} 12...
Bd6 {[%clk 0:02:24.3]} 13. Be2 {[%clk 0:02:31.9]} 13... O-O {[%clk 0:02:23.5]}
14. O-O {[%clk 0:02:32.5]} 14... Qc7 {[%clk 0:02:22.6]} 15. Nce1 {[%clk
0:02:27.2]} 15... Rad8 {[%clk 0:02:19.7]} 16. Ng2 {[%clk 0:02:26.9]} 16... Rfe8
{[%clk 0:02:15]} 17. Rc1 {[%clk 0:02:25.9]} 17... Ne5 {[%clk 0:02:09.6]} 18.
Nxe5 {[%clk 0:02:18.4]} 18... Bxe5 {[%clk 0:02:10.5]} 19. d4 {[%clk 0:02:19]}
19... Bd6 {[%clk 0:02:07.3]} 20. Rxf6 {[%clk 0:02:16.9]} 20... gxf6 {[%clk
0:02:07.1]} 21. Bf3 {[%clk 0:02:17.1]} 21... Bf8 {[%clk 0:01:38.5]} 22. d5
{[%clk 0:02:05.8]} 22... Re5 {[%clk 0:01:30.5]} 23. e4 {[%clk 0:02:00.8]} 23...
Rde8 {[%clk 0:01:26.2]} 24. Bxe5 {[%clk 0:01:46.4]} 24... Qxe5 {[%clk
0:01:24.9]} 25. Ne3 {[%clk 0:01:44.1]} 25... Bh6 {[%clk 0:01:21.2]} 26. Ng4
{[%clk 0:01:43.5]} 26... Qg5 {[%clk 0:01:18.2]} 27. Nxh6+ {[%clk 0:01:32.3]}
27... Qxh6 {[%clk 0:01:19.1]} 28. Kh1 {[%clk 0:01:23.6]} 28... f5 {[%clk
0:01:09.7]} 29. exf5 {[%clk 0:01:22]} 29... Re3 {[%clk 0:01:09.8]} 30. Bg2
{[%clk 0:00:59.4]} 30... Rxg3 {[%clk 0:01:02.6]} 31. Qe1 {[%clk 0:00:51.5]}
31... Re3 {[%clk 0:00:59.8]} 32. Qd2 {[%clk 0:00:33.6]} 32... Rh3 {[%clk
0:00:54.2]} 33. Qxh6 {[%clk 0:00:29.7]} 33... Rxh6 {[%clk 0:00:55.1]} 34. b4
{[%clk 0:00:30.2]} 34... Bc8 {[%clk 0:00:42.5]} 35. bxc5 {[%clk 0:00:25.4]}
35... bxc5 {[%clk 0:00:43.4]} 36. Be4 {[%clk 0:00:22.6]} 36... Rh4 {[%clk
0:00:42.8]} 37. Rxc5 {[%clk 0:00:19]} 37... Rxe4 {[%clk 0:00:43]} 38. Rxc8+
{[%clk 0:00:19.2]} 38... Kg7 {[%clk 0:00:43.9]} 39. Ra8 {[%clk 0:00:15.5]} 39...
Re5 {[%clk 0:00:31]} 40. d6 {[%clk 0:00:14.8]} 40... Rd5 {[%clk 0:00:28.6]} 41.
Rxa6 {[%clk 0:00:14]} 41... Kf6 {[%clk 0:00:29.3]} 42. a4 {[%clk 0:00:13.1]}
42... Kxf5 {[%clk 0:00:28.3]} 43. a5 {[%clk 0:00:12.6]} 43... Ke6 {[%clk
0:00:23.2]} 44. Ra8 {[%clk 0:00:12.8]} 44... Kxd6 {[%clk 0:00:20.6]} 45. a6
{[%clk 0:00:13]} 45... Kc7 {[%clk 0:00:18.8]} 46. Kg2 {[%clk 0:00:13.5]} 46...
Ra5 {[%clk 0:00:18.3]} 47. Kg3 {[%clk 0:00:13.2]} 47... Kb6 {[%clk 0:00:18]} 48.
Kf4 {[%clk 0:00:13.2]} 48... Rxa6 {[%clk 0:00:18.5]} 49. Rxa6+ {[%clk
0:00:10.6]} 49... Kxa6 {[%clk 0:00:19.4]} 50. Kf5 {[%clk 0:00:11.1]} 50... Kb7
{[%clk 0:00:19.9]} 51. Kf6 {[%clk 0:00:11.6]} 51... Kc7 {[%clk 0:00:20.6]} 52.
Kxf7 {[%clk 0:00:10]} 52... h5 {[%clk 0:00:18.4]} 53. h4 {[%clk 0:00:10.1]}
53... Kd7 {[%clk 0:00:18.9]} 54. Kg6 {[%clk 0:00:10.8]} 54... Ke8 {[%clk
0:00:19.8]} 55. Kxh5 {[%clk 0:00:11.5]} 55... Kf8 {[%clk 0:00:20.7]} 56. Kh6
{[%clk 0:00:12.3]} 56... Kg8 {[%clk 0:00:21.6]} 57. Kg6 {[%clk 0:00:12.6]} 57...
Kh8 {[%clk 0:00:22.5]} 58. Kh6 {[%clk 0:00:13.3]} 58... Kg8 {[%clk 0:00:23]} 59.
Kg6 {[%clk 0:00:14.2]} 59... Kh8 {[%clk 0:00:23.9]} 60. Kh6 {[%clk 0:00:15.1]}
60... Kg8 {[%clk 0:00:24.8]} 1/2-1/2

[Event "Early-Titled-Tuesday-Blitz-November-28-2023"]
[Site "Chess.com"]
[Date "2023.11.28"]
[Round "3"]
[White "Ginzburg_Yakov"]
[Black "FrenchMonster2002"]
[Result "1-0"]
[WhiteElo "2600"]
[BlackElo "2419"]
[TimeControl "180+1"]
[EndTime "8:29:38 PST"]
[Termination "Ginzburg_Yakov won on time"]

1. e4 {[%clk 0:02:59.5]} 1... c5 {[%clk 0:02:56.4]} 2. Nf3 {[%clk 0:02:59.2]}
2... Nc6 {[%clk 0:02:52]} 3. Bb5 {[%clk 0:02:58.2]} 3... g6 {[%clk 0:02:50.6]}
4. O-O {[%clk 0:02:57.8]} 4... Bg7 {[%clk 0:02:50.7]} 5. c3 {[%clk 0:02:58.2]}
5... e5 {[%clk 0:02:46.8]} 6. d4 {[%clk 0:02:57.7]} 6... cxd4 {[%clk 0:02:46.4]}
7. cxd4 {[%clk 0:02:57.9]} 7... exd4 {[%clk 0:02:45.7]} 8. Bf4 {[%clk
0:02:57.7]} 8... a6 {[%clk 0:02:43.9]} 9. Ba4 {[%clk 0:02:57.4]} 9... d6 {[%clk
0:02:40]} 10. Nbd2 {[%clk 0:02:53]} 10... Ne7 {[%clk 0:02:39.1]} 11. Nc4 {[%clk
0:02:52.7]} 11... O-O {[%clk 0:02:32.4]} 12. Nxd6 {[%clk 0:02:51.6]} 12... b5
{[%clk 0:02:27.9]} 13. Bb3 {[%clk 0:02:51.7]} 13... Na5 {[%clk 0:02:15.1]} 14.
Bd5 {[%clk 0:02:40.3]} 14... Nxd5 {[%clk 0:02:12.6]} 15. exd5 {[%clk 0:02:41.2]}
15... Bg4 {[%clk 0:02:06.8]} 16. h3 {[%clk 0:02:39.1]} 16... Bxf3 {[%clk
0:02:06.4]} 17. Qxf3 {[%clk 0:02:40]} 17... Nc4 {[%clk 0:02:02.5]} 18. Ne4
{[%clk 0:02:10.4]} 18... Nxb2 {[%clk 0:01:41.8]} 19. d6 {[%clk 0:02:07.4]} 19...
Nc4 {[%clk 0:01:34.9]} 20. Rad1 {[%clk 0:01:58.3]} 20... Qb6 {[%clk 0:01:27.4]}
21. Rfe1 {[%clk 0:01:42.8]} 21... h6 {[%clk 0:00:52.8]} 22. g4 {[%clk
0:00:48.3]} 22... Rad8 {[%clk 0:00:45.1]} 23. g5 {[%clk 0:00:45.6]} 23... hxg5
{[%clk 0:00:37.6]} 24. Bxg5 {[%clk 0:00:45.2]} 24... f6 {[%clk 0:00:28.3]} 25.
Bf4 {[%clk 0:00:44.9]} 25... Rfe8 {[%clk 0:00:12]} 26. Bg3 {[%clk 0:00:37.9]}
26... Re6 {[%clk 0:00:10.7]} 27. Qg4 {[%clk 0:00:24.5]} 27... f5 {[%clk
0:00:08.9]} 28. Qh4 {[%clk 0:00:24.3]} 28... fxe4 {[%clk 0:00:03.4]} 29. Qg4
{[%clk 0:00:21.9]} 29... Rexd6 {[%clk 0:00:02.5]} 30. Qxe4 {[%clk 0:00:20.3]}
30... Rf8 {[%clk 0:00:01.9]} 31. Bxd6 {[%clk 0:00:18.7]} 31... Qxd6 {[%clk
0:00:02.5]} 32. Kh1 {[%clk 0:00:15.9]} 32... Qf6 {[%clk 0:00:02.4]} 33. Qd5+
{[%clk 0:00:12.7]} 33... Qf7 {[%clk 0:00:02.5]} 34. Re6 {[%clk 0:00:10.6]} 34...
Qf3+ {[%clk 0:00:01.6]} 35. Qxf3 {[%clk 0:00:10.7]} 35... Rxf3 {[%clk
0:00:02.5]} 36. Rxg6 {[%clk 0:00:11.3]} 36... Rxf2 {[%clk 0:00:02.9]} 37. Rdg1
{[%clk 0:00:11.4]} 37... Rf7 {[%clk 0:00:02.6]} 38. Rxa6 {[%clk 0:00:12.3]}
38... d3 {[%clk 0:00:01.8]} 39. Ra8+ {[%clk 0:00:12.8]} 39... Kh7 {[%clk
0:00:02.4]} 40. Rd8 {[%clk 0:00:13.5]} 40... d2 {[%clk 0:00:02.6]} 41. a4 {[%clk
0:00:13]} 41... bxa4 {[%clk 0:00:02.5]} 42. Rg4 {[%clk 0:00:11.4]} 42... Ne3
{[%clk 0:00:01.8]} 43. Rh4+ {[%clk 0:00:10.7]} 43... Bh6 {[%clk 0:00:02]} 44.
Rxd2 {[%clk 0:00:11.2]} 44... Rf1+ {[%clk 0:00:02]} 45. Kh2 {[%clk 0:00:11.4]}
1-0